Cogmind - Beta 15 @@@ ROGUE MODE // 2025.08.06 @ 19:25:11 Player: puppuppit Result: Destroyed by B-75 Beast with Magnetic Acceleration Cannon Performance ------------- Evolutions (2) 1000 Regions Visited (6) 1200 Robots Destroyed (143) 715 Value Destroyed (3313) 3313 Prototype IDs (1) 20 Alien Tech Used (0) 0 Bonus (897) 897 TOTAL SCORE: 7145 Bonus ------- High Alert Combat Kills 697 Entered Garrisons 200 Cogmind --------- Core Integrity 0/550 Matter 300/300 Energy 98/100 System Corruption 6% Temperature Cool (0) Movement Core (50) Location -8/Garrison Parts ------- > --- POWER (1) -------- (None) > --- PROPULSION (3) --- (None) > --- UTILITY (3) ------ (None) > --- WEAPON (4) ------- (None) > --- INVENTORY (5) ---- Advanced Treads Advanced Treads Large Matter Pod (150) Weapon Cycler Hacking Suite Peak State ------------ > --- POWER ------------ Deuterium Engine > --- PROPULSION ------- Advanced Treads Advanced Treads Advanced Treads > --- UTILITY ---------- Large Storage Unit Hacking Suite High-powered Tractor Beam > --- WEAPON ----------- Assault Cannon Advanced Assault Cannon Advanced Assault Cannon Advanced Assault Cannon > --- INVENTORY -------- Light Fission Core Advanced Treads Advanced Treads Combat Airjet Improved Heat Sink Large Matter Pod Large Matter Pod Improved Propulsion Shielding Layered Light Armor Plating Hacking Suite Light Cannon Light Cannon Light Cannon Advanced Assault Cannon Rocket Launcher [Rating: 38] Favorites ----------- Power Ion Engine Engine Ion Engine Power Core Nuclear Core Propulsion Light Treads Treads Light Treads Utility Large Storage Unit Device High-powered Tractor Beam Storage Large Storage Unit Processor Salvage Targeting Computer Hackware Hacking Suite Protection Propulsion Shielding Weapon Advanced Assault Cannon Energy Gun Medium Laser Ballistic Gun Light Assault Rifle Ballistic Cannon Advanced Assault Cannon Launcher Grenade Launcher Build | -11 -10 -10 -10 -9 -8 -8 ------- Run | Yrd Mat Min Exi Min Mat Gar Slots Evolved 4 | . . . . . 4 . Power . | . . . . . . . Propulsion 1 | . . . . . 1 . Utility 1 | . . . . . 1 . Weapon 2 | . . . . . 2 . Parts Attached 56 | 8 10 . 1 . 35 2 Power 6 | 2 2 . . . 2 . Engine 5 | 2 2 . . . 1 . Core 1 | . . . . . 1 . Reactor . | . . . . . . . Propulsion 15 | 2 . . . . 11 2 Treads 15 | 2 . . . . 11 2 Leg . | . . . . . . . Wheel . | . . . . . . . Hover . | . . . . . . . Flight . | . . . . . . . Utility 17 | 2 3 . . . 12 . Device 4 | 1 . . . . 3 . Storage 3 | 1 1 . . . 1 . Processor 2 | . . . . . 2 . Hackware 3 | . . . . . 3 . Protection 5 | . 2 . . . 3 . Artifact . | . . . . . . . Weapon 18 | 2 5 . 1 . 10 . Energy Gun 1 | 1 . . . . . . Energy Cannon . | . . . . . . . Ballistic Gun 2 | 1 . . . . 1 . Ballistic Cannon 12 | . 3 . 1 . 8 . Launcher 3 | . 2 . . . 1 . Special Weapon . | . . . . . . . Impact Weapon . | . . . . . . . Slashing Weapon . | . . . . . . . Piercing Weapon . | . . . . . . . Special Melee Weapon . | . . . . . . . Unidentified Prototypes 1 | . . . . . 1 . Parts Lost 16 | . . . . . 10 6 Power . | . . . . . . . Propulsion 2 | . . . . . . 2 Utility 4 | . . . . . 4 . Weapon 10 | . . . . . 6 4 Highest Loss Streak 6 | . . . . . 4 6 To Critical Strikes . | . . . . . . . Average Backups 13 | 1 10 15 14 15 14 13 Power . | . . . . 1 . . Propulsion 3 | . 2 3 5 5 3 5 Utility 3 | . 1 3 3 3 4 8 Weapon 5 | . 6 8 6 6 4 . Tool/Special . | . . . . . . . Unused Backups 18 | . 3 . 3 . 6 6 Power 1 | . . . . . 1 . Propulsion 6 | . . . . . 4 2 Utility 9 | . 2 . 2 . 1 4 Weapon 2 | . 1 . 1 . . . Tool/Special . | . . . . . . . Average Slot Usage (%) 99 | . 99 100 100 100 99 83 Engine 9 | . 14 14 14 14 6 . Core 1 | . . . . . 2 5 Treads 27 | . 28 28 28 28 27 26 Device 3 | . 3 . . . 3 9 Storage 10 | . 14 14 14 14 9 9 Hackware 4 | . . . . . 7 . Protection 8 | . 10 14 14 14 5 4 Ballistic Cannon 31 | . 26 22 28 27 35 23 Peak Build Rating 38 | 9 9 9 9 9 38 32 Average Rating 22 | 6 7 8 9 9 32 26 On Entrance 10 | . 9 8 9 9 9 32 Naked Turns 3 | . . . . . . 3 Heaviest Build 54 | 14 32 32 32 32 54 43 Greatest Support 66 | 40 40 40 40 40 66 66 Greatest Overweight (x) . | . . . . . . . Average Overweight (x) . | . . . . . . . Largest Inventory Capacity 15 | 8 15 15 15 15 15 15 Average Capacity 13 | 7 11 15 15 15 15 14 Most Carried 15 | 3 15 15 15 15 15 15 Average Carried 13 | 1 10 14 14 15 14 13 Final Capacity 15 | 8 15 15 15 15 15 5 Final Carried 15 | 2 15 15 15 15 15 5 Class Distribution -------------------- 41% | Mutant 22% | Tank 19% | Gunner 12% | Scavenger-Tank Dominant Class ---------------- Mutant | -10/Materials Mutant | -10/Mines Mutant | -10/Exiles Mutant | -9/Mines Tank | -8/Materials Mutant | -8/Garrison Resources | -11 -10 -10 -10 -9 -8 -8 ----------- Run | Yrd Mat Min Exi Min Mat Gar Matter Collected 4959 | 231 853 93 154 40 3468 120 Remotely 1425 | . . . . . 1425 . Salvage Created 3618 | 180 799 65 . 10 2530 34 Parts 226 | 19 54 9 . 3 139 2 Haulers Intercepted 7 | . 2 . . . 5 . Recyclers Shooed 7 | . 2 . . . 5 . Parts Field Recycled . | . . . . . . . Retrieved Matter . | . . . . . . . Parts Self-Destructed . | . . . . . . . Prevented . | . . . . . . . Kills | -11 -10 -10 -10 -9 -8 -8 ------- Run | Yrd Mat Min Exi Min Mat Gar Combat Hostiles Destroyed 81 | . 20 7 . 3 50 1 Cannons 49 | . 12 1 . . 35 1 AOE 32 | . 8 6 . 3 15 . Classes Destroyed 14 | 3 6 1 . . 4 . Worker 12 | 2 3 . . . 7 . Builder 9 | . 1 . . . 8 . Tunneler 5 | 4 1 . . . . . Hauler 7 | . 2 . . . 5 . Recycler 18 | 1 2 1 . . 14 . Operator 5 | . 1 . . . 4 . Watcher 7 | . 3 . . . 4 . Swarmer 25 | . 6 6 . 3 10 . Grunt 43 | . 14 . . . 29 . Brawler 1 | . . . . . 1 . Sentry 8 | . . . . . 7 1 Hunter 2 | . . . . . 2 . Heavy 1 | . . . . . 1 . Assembled 1 | . . 1 . . . . Best Kill Streak 14 | 5 6 4 . 3 14 1 Combat Bots Only 10 | . 3 3 . 3 10 1 Max Kills in Single Turn 3 | 1 3 3 . 2 3 1 Gunslinging . | . . . . . . . Exploded 3 | . 3 2 . 2 3 . Melee . | . . . . . . . Uniques/NPCs Destroyed . | . . . . . . . Combat | -11 -10 -10 -10 -9 -8 -8 -------- Run | Yrd Mat Min Exi Min Mat Gar Hostile Shots Fired 351 | . 39 21 . 5 190 96 Missed 98 | . 14 6 . 1 45 32 Hits 253 | . 25 15 . 4 145 64 Melee 2 | . . . . . 2 . Projectile 251 | . 25 15 . 4 143 64 Critical Strikes 13 | . . . . . 10 3 Actively Blocked 1 | . . . . . 1 . Damage Taken 4197 | . 288 127 . 74 2584 1124 Core 604 | . 20 16 . 8 261 299 Absorbed by Shields 19 | . . . . . . 19 Redirected to Shielding 289 | . 16 14 . 4 255 . Regen/Repaired (Parts) 388 | . 129 . . . 259 . Core Remaining (%) 91 | 100 . . . 82 . . Volleys Fired 246 | 15 54 8 . 2 156 11 Largest 4 | 2 2 2 . 1 4 4 Hottest 160 | 70 60 60 . 30 160 130 Shots Fired 634 | 30 103 16 . 2 451 32 Gun 30 | 30 . . . . . . Cannon 575 | . 98 10 . . 435 32 Launcher 29 | . 5 6 . 2 16 . Special . | . . . . . . . Kinetic 590 | 15 98 10 . . 435 32 Thermal 15 | 15 . . . . . . Explosive 29 | . 5 6 . 2 16 . Electromagnetic . | . . . . . . . Robot Hit Streak 11 | 4 8 9 . . 11 8 Robot Miss Streak 9 | 2 4 3 . . 9 2 Penetration Max . | . . . . . . . Secondary Targets . | . . . . . . . Shots Hit Robots 337 | 17 54 7 . . 234 25 Core Hits 193 | 10 39 7 . 3 130 4 Critical Kills . | . . . . . . . Critical Parts Destroyed 1 | 1 . . . . . . Critical Strikes 15 | 2 3 . . . 9 1 Burn 1 | 1 . . . . . . Destroy 1 | 1 . . . . . . Blast 13 | . 3 . . . 9 1 Melee Attacks . | . . . . . . . Impact . | . . . . . . . Slashing . | . . . . . . . Piercing . | . . . . . . . Sneak Attacks . | . . . . . . . Combat Hostiles . | . . . . . . . Follow-up Attacks . | . . . . . . . Damage Inflicted 11054 | 187 1477 411 . 165 8268 546 Guns 187 | 187 . . . . . . Cannons 7810 | . 997 72 . . 6212 529 Explosions 3036 | . 480 339 . 165 2052 . Melee . | . . . . . . . Ramming 21 | . . . . . 4 17 Kinetic 7885 | 75 997 72 . . 6212 529 Thermal 231 | 112 119 . . . . . Explosive 2917 | . 361 339 . 165 2052 . Electromagnetic . | . . . . . . . Impact . | . . . . . . . Slashing . | . . . . . . . Piercing . | . . . . . . . Highest Corruption 6 | . . . . . 5 6 Average Corruption 5 | . . . . . 5 5 Corruption Purged . | . . . . . . . Corruption Blocked . | . . . . . . . Effects 12 | . . . . . 10 2 Message Errors 1 | . . . . . 1 . Matter Fused 5 | . . . . . 4 1 Heat Flow Errors 1 | . . . . . 1 . Energy Discharges 3 | . . . . . 3 . Data Loss (minor) 1 | . . . . . 1 . Data Loss (major) 1 | . . . . . . 1 Overload Shots . | . . . . . . . Overflow Damage 218 | . 74 11 . 6 127 . Projectiles 117 | . 32 . . . 85 . Explosions 101 | . 42 11 . 6 42 . Melee . | . . . . . . . Knockbacks 65 | . 13 1 . . 51 . Impact . | . . . . . . . Kinetic 63 | . 13 1 . . 49 . Secondary 2 | . . . . . 2 . Self-Inflicted Damage 167 | . . 4 . 42 116 5 Shots 5 | . . 1 . 2 2 . Rammed 7 | . . . . . 1 6 Targets Rammed 7 | . . . . . 1 6 Kicked . | . . . . . . . Crushed . | . . . . . . . Highest Temperature 342 | 160 36 . . . 342 9 Average Temperature 89 | 67 10 . . . 96 5 Received Heat Transfer 1347 | . 102 . . . 990 255 Effects 1 | . . . . . 1 . Energy Bleed 1 | . . . . . 1 . Siege Activations . | . . . . . . . Martial Activations . | . . . . . . . Shielding Activations . | . . . . . . . Robots Disrupted . | . . . . . . . Combat Hostiles . | . . . . . . . Robots Corrupted . | . . . . . . . Combat Hostiles . | . . . . . . . Parts Fried . | . . . . . . . Impact Corruptions . | . . . . . . . Robots Melted . | . . . . . . . Combat Hostiles . | . . . . . . . Parts Melted 1 | 1 . . . . . . Heat Transferred 507 | 407 100 . . . . . Parts Sabotaged . | . . . . . . . Parts Stolen . | . . . . . . . Parts Stripped . | . . . . . . . Power Chain Reactions . | . . . . . . . Alert | -11 -10 -10 -10 -9 -8 -8 ------- Run | Yrd Mat Min Exi Min Mat Gar Maximum Alert Level 4 | . 1 1 . . 4 3 Low Security (%) 41 | 100 87 45 . 100 16 . Level 1 18 | . 12 54 . . 21 . Level 2 12 | . . . . . 20 . Level 3 18 | . . . . . 26 100 Level 4 9 | . . . . . 15 . Level 5 . | . . . . . . . High Security . | . . . . . . . Max Security . | . . . . . . . Sterilizations 1 | . . . . . 1 . Peak Influence 1299 | 15 387 232 . 84 1299 851 Initial 841 | . 3 145 . . 5 841 Average 441 | 2 117 195 . 49 629 831 Influence Increases 3137 | 35 798 177 . 84 2023 20 Destroy 0b10 Robot/C 1600 | . 400 120 . 60 1000 20 Destroy 0b10 Robot/NC 315 | 35 65 5 . . 210 . Destroy Leader 358 | . 90 20 . 10 238 . Successful Hack 63 | . 34 . . . 29 . Select Force Hacks 90 | . 60 . . . 30 . Disable Machine 285 | . 75 . . . 210 . Destroy Structure 336 | . 44 32 . 14 246 . Lose Combat Pursuer 90 | . 30 . . . 60 . Influence Decreases 2336 | 30 428 350 202 70 743 513 Entered New Map 896 | . 2 230 202 . 9 453 Time Decay 1280 | 30 426 120 . 70 634 . Lost Part 160 | . . . . . 100 60 Squads Dispatched 14 | . 6 . . . 8 . Investigation 8 | . 5 . . . 3 . Extermination . | . . . . . . . Reinforcement 4 | . 1 . . . 3 . Assault 2 | . . . . . 2 . Garrison . | . . . . . . . Intercept . | . . . . . . . Searches Triggered . | . . . . . . . Construction Impeded 1 | . . . . . 1 . Haulers Reinforced . | . . . . . . . Active Scanning Responses . | . . . . . . . Cargo Convoy Interrupts . | . . . . . . . Stealth | -11 -10 -10 -10 -9 -8 -8 --------- Run | Yrd Mat Min Exi Min Mat Gar Distress Signals 4 | . 1 . . . 3 . Communications Jammed . | . . . . . . . Distress Signals . | . . . . . . . Times Spotted 105 | . 27 7 . 3 64 4 Peak Tracking Total 5 | . 3 3 . 3 5 4 Tactical Retreats 4 | . 1 . . . 3 . Traps | -11 -10 -10 -10 -9 -8 -8 ------- Run | Yrd Mat Min Exi Min Mat Gar Traps Triggered 4 | . 3 . . . . 1 Indirectly . | . . . . . . . Trap Hack Attempts . | . . . . . . . Triggered . | . . . . . . . Disarmed . | . . . . . . . Reprogrammed . | . . . . . . . Reused . | . . . . . . . Traps Extracted . | . . . . . . . Installed . | . . . . . . . Triggered . | . . . . . . . Machines | -11 -10 -10 -10 -9 -8 -8 ---------- Run | Yrd Mat Min Exi Min Mat Gar Machines Disabled 19 | . 5 . . . 14 . Max in Single Turn 3 | . 3 . . . 2 . Machines Repaired . | . . . . . . . Machines Dismantled . | . . . . . . . Machines Sabotaged . | . . . . . . . Overloaded Fab Kills . | . . . . . . . Hacking | -11 -10 -10 -10 -9 -8 -8 --------- Run | Yrd Mat Min Exi Min Mat Gar Machines Accessed 27 | . 11 . 1 . 15 . Terminals 18 | . 8 . . . 10 . Fabricators . | . . . . . . . Repair Stations 2 | . 1 . . . 1 . Recycling Units 4 | . 2 . . . 2 . Scanalyzers 1 | . . . . . 1 . Garrison Access 1 | . . . . . 1 . Total Hacks 94 | . 38 . 1 . 55 . Successful 68 | . 25 . 1 . 42 . Failed 26 | . 13 . . . 13 . Catastrophic . | . . . . . . . Database Lockouts . | . . . . . . . Manual 77 | . 35 . . . 42 . Terminals 63 | . 30 . . . 33 . Fabricators . | . . . . . . . Repair Stations 9 | . 4 . . . 5 . Recycling Units 11 | . 4 . . . 7 . Scanalyzers 4 | . . . . . 4 . Garrison Access 6 | . . . . . 6 . Terminal Hacks 10 | . 5 . 1 . 4 . Record 1 | . . . 1 . . . Robot Analysis 7 | . 4 . . . 3 . Terminal Index 2 | . 1 . . . 1 . Fabricator Hacks . | . . . . . . . Repair Station Hacks 7 | . 3 . . . 4 . Scan Component 4 | . 2 . . . 2 . Repair 3 | . 1 . . . 2 . Recycling Unit Hacks 1 | . . . . . 1 . Retrieve Components 1 | . . . . . 1 . Scanalyzer 4 | . . . . . 4 . Insert Component 2 | . . . . . 2 . Analyze 2 | . . . . . 2 . Garrison Access Hacks 1 | . . . . . 1 . Unlock Access 1 | . . . . . 1 . Unauthorized Hacks 45 | . 17 . . . 28 . Terminals 33 | . 13 . . . 20 . Assimilate 1 | . . . . . 1 . Botnet 15 | . 6 . . . 9 . Operators 2 | . 1 . . . 1 . Skim 15 | . 6 . . . 9 . Fabricators . | . . . . . . . Repair Stations 2 | . 1 . . . 1 . Patch 2 | . 1 . . . 1 . Recycling Units 7 | . 3 . . . 4 . Reject 1 | . . . . . 1 . Recyclers 2 | . 1 . . . 1 . Mask 1 | . . . . . 1 . Tunnel 3 | . 2 . . . 1 . Scanalyzers . | . . . . . . . Garrison Access 3 | . . . . . 3 . Reprogram 1 | . . . . . 1 . Intercept 1 | . . . . . 1 . Watchers 1 | . . . . . 1 . Data Cores Recovered 2 | . . . . . 2 . Used . | . . . . . . . Hacking Detections 22 | . 9 . . . 13 . Full Trace Events . | . . . . . . . Feedback Events . | . . . . . . . Feedback Blocked . | . . . . . . . Robot Schematics Acquired . | . . . . . . . Robots Built . | . . . . . . . Authchips . | . . . . . . . Time . | . . . . . . . Total Robot Build Rating . | . . . . . . . Part Schematics Acquired 2 | . . . . . 2 . Parts Built . | . . . . . . . Authchips . | . . . . . . . Time . | . . . . . . . Total Part Build Rating . | . . . . . . . Parts Repaired 3 | . 1 . . . 2 . Time 108 | . 26 . . . 82 . Parts Recycled . | . . . . . . . Recycled Matter . | . . . . . . . Retrieved Matter . | . . . . . . . Retrieved Components 10 | . . . . . 10 . Parts Scanalyzed 2 | . . . . . 2 . Part Schematics Acquired 2 | . . . . . 2 . Parts Damaged . | . . . . . . . Bothacking | -11 -10 -10 -10 -9 -8 -8 ------------ Run | Yrd Mat Min Exi Min Mat Gar Used RIF Installer . | . . . . . . . Robots Hacked . | . . . . . . . Non-combat . | . . . . . . . Combat . | . . . . . . . Robot Hacks Applied . | . . . . . . . Relay Couplers Released . | . . . . . . . Fabnet Peak Effective % . | . . . . . . . Robots Rewired . | . . . . . . . Allies Hacked . | . . . . . . . Hacks Repelled . | . . . . . . . Allies | -11 -10 -10 -10 -9 -8 -8 -------- Run | Yrd Mat Min Exi Min Mat Gar Total Allies 1 | . . . . . 1 . Largest Group 1 | . . . . . 1 . Highest-Rated Group 27 | . . . . . 27 . Highest-Rated Ally 27 | . . . . . 27 . Total Orders . | . . . . . . . Ally Attacks . | . . . . . . . Total Damage . | . . . . . . . Kills . | . . . . . . . Allies Corrupted . | . . . . . . . Allies Melted . | . . . . . . . Intel | -11 -10 -10 -10 -9 -8 -8 ------- Run | Yrd Mat Min Exi Min Mat Gar Active Infowar (turns) 389 | 42 347 . . . . . Terrain 389 | 42 347 . . . . . Robot Analysis Total 7 | . 4 . . . 3 . Derelict Logs Recovered 1 | . . . . 1 . . Drone Launches . | . . . . . . . Drone Recoveries . | . . . . . . . Exploration | -11 -10 -10 -10 -9 -8 -8 ------------- Run | Yrd Mat Min Exi Min Mat Gar Turns Passed 5613 | 125 1472 241 283 147 3246 99 Spaces Moved 2903 | 44 760 129 176 88 1667 39 Core 9 | 1 . . . . . 8 Treads 2894 | 43 760 129 176 88 1667 31 Legs . | . . . . . . . Wheels . | . . . . . . . Hover . | . . . . . . . Flight . | . . . . . . . Fastest Speed 50 | 50 160 160 160 160 145 50 Average Speed 153 | 157 160 160 160 160 148 125 Slowest Speed 160 | 160 160 160 160 160 160 145 Overloaded Moves . | . . . . . . . Propulsion Burnouts . | . . . . . . . Robots Hopped . | . . . . . . . Potential Cave-ins . | . . . . . . . Cave-ins Triggered . | . . . . . . . Exploration Rate (%) 43 | 4 91 34 55 26 87 7 Regions Visited 6 Branch Regions 3 Pre-discovered Areas 9 | . 4 1 1 . 3 . Known Exits Taken 1 | . . . . . 1 . Unknown Exits Taken 5 | 1 1 1 1 1 . . Scrap Searched 1 | . . . . 1 . . Spaces Dug 43 | . . . . 8 35 . Terrain Destroyed 359 | . 50 39 . 14 256 . Melee . | . . . . . . . Projectile 93 | . . . . . 93 . AOE 266 | . 50 39 . 14 163 . Terrain Rammed 1 | . . . . . . 1 Walls Destroyed . | . . . . . . . Machines Disabled . | . . . . . . . Actions | -11 -10 -10 -10 -9 -8 -8 --------- Run | Yrd Mat Min Exi Min Mat Gar Total 3569 | 69 915 146 182 91 2105 61 Wait 207 | . 59 . . . 147 1 Move 2897 | 43 759 128 175 87 1666 39 Hop . | . . . . . . . Pick Up 48 | 2 17 2 3 . 24 . Fast Attach 16 | 7 3 . . . 6 . Attach 18 | . 1 . . . 15 2 Detach 6 | . 2 . . . 4 . Swap 76 | 1 10 6 1 2 55 1 Drop 47 | 1 10 2 3 . 31 . Fire 246 | 15 54 8 . 2 156 11 Melee . | . . . . . . . Ram 1 | . . . . . . 1 Kick . | . . . . . . . Crush 7 | . . . . . 1 6 Escape Stasis . | . . . . . . . Rewire . | . . . . . . . Trap . | . . . . . . . Miscellaneous . | . . . . . . . Route ------- -11/Scrapyard -10/Materials (discovered 5 exits: *Mat x3 / [*Min x2]) -10/Mines (discovered 2 exits: *Mat / *Exi) -10/Exiles -9/Mines -8/Materials (discovered 4 exits: *Fac x3 / Gar) -8/Garrison History --------- Turn | Location | Event 13 | -11/Scrapyard | Discovered new exit (range 16) 126 | -11/Scrapyard | Entered Materials 282 | -10/Materials | Discovered new exit (range 16) 317 | -10/Materials | Build established: Mutant 416 | -10/Materials | Discovered new exit (range 12) 456 | -10/Materials | Repaired Lgt. Cannon 637 | -10/Materials | Discovered new exit (range 14) 847 | -10/Materials | Identified exit to Materials 877 | -10/Materials | Learned location of Recycling (-7) 879 | -10/Materials | Learned 4 Subcaves zone layouts 881 | -10/Materials | Learned 4 Recycling zone layouts 894 | -10/Materials | Learned location of Subcaves (-10) 1598 | -10/Materials | Entered Mines 1613 | -10/Mines | Assembled infested the area 1631 | -10/Mines | Discovered exit to Materials (range 5) 1815 | -10/Mines | Learned location of Storage (-7) 1833 | -10/Mines | Deemed a non-threat by the Exiles lab entrance 1833 | -10/Mines | Discovered new exit (range 5) 1839 | -10/Mines | Entered Exiles 1886 | -10/Exiles | Met 8R-AWN 1910 | -10/Exiles | Met EX-HEX 1951 | -10/Exiles | Met EX-BIN 1978 | -10/Exiles | Met EX-DEC 1985 | -10/Exiles | Learned location of Zion (-7) 2102 | -10/Exiles | Discovered new exit (range 11) 2122 | -10/Exiles | Entered Mines 2137 | -9/Mines | Met a Derelict bent on vengeance 2145 | -9/Mines | Learned Materials stockpile data 2245 | -9/Mines | Discovered new exit (range 7) 2269 | -9/Mines | Entered Materials 2269 | -8/Materials | Evolved 4 slots: Propulsion x1, Utility x1, Weapon x2 2677 | -8/Materials | Discovered new exit (range 15) 2751 | -8/Materials | Build established: Scavenger-Tank 2762 | -8/Materials | Learned location of 1 exit from Recycling 2836 | -8/Materials | Learned 4 Recycling zone layouts 2869 | -8/Materials | Destroyed 10 combat bots 2901 | -8/Materials | Learned Factory emergency access door positions 2954 | -8/Materials | Repaired Imp. Propulsion Shielding 2957 | -8/Materials | Identified exit to Factory 3068 | -8/Materials | Learned 8 Factory zone layouts 3108 | -8/Materials | Learned location of 1 exit from Lower Caves 3157 | -8/Materials | Learned 12 Factory zone layouts 3477 | -8/Materials | Build established: Gunner 4048 | -8/Materials | Repaired Adv. Assault Cannon 4126 | -8/Materials | Build established: Tank 4354 | -8/Materials | Discovered exit to Factory (range 3) 4533 | -8/Materials | Identified exit to Garrison 4669 | -8/Materials | First assault squad dispatched 4761 | -8/Materials | Lost 4 parts (2u2w) 5125 | -8/Materials | Lost 3 parts (3w) 5433 | -8/Materials | Sterilization system engaged 5433 | -8/Materials | Non-combat units ordered to evacuate 5515 | -8/Materials | Entered Garrison 5544 | -8/Garrison | Core integrity fell below 50% 5546 | -8/Garrison | Spotted B-75 Beast 5553 | -8/Garrison | Triggered checkpoint 5604 | -8/Garrison | Core integrity fell below 20% 5611 | -8/Garrison | Released all parts (6) 5614 | -8/Garrison | Destroyed by B-75 Beast with Magnetic Acceleration Cannon Last Messages --------------- 05578_ Adv. Treads destroyed. 05581_ Critical hit (Burn: +37). 05581_ Adv. Treads destroyed. 05587_ Slug penetrates Wall. 05587_ Critical hit (Burn: +37). 05596_ Slug penetrates Wall. 05597_ Lgt. Cannon destroyed. 05599_ Acquired 5 matter. 05603_ Rammed Wall. 05603_ Destabilizing: Core damaged (-11). 05603_ Destabilizing: System corrupted (+1). 05605_ Slammed into Y-45 Defender. 05611_ Released Lyr. Light Armor Plating. 05611_ Released Adv. Heat Sink. 05611_ Released Lrg. Storage Unit. 05611_ Released Adv. Treads. 05611_ Extracted 94 matter. 05611_ H-55 Commando suffers critical hit (Blast). 05611_ H-55 Commando knocked back. 05612_ Slug penetrates Wall. Map ----- +----------------------------------------------------+ | ?????????????????????????????????????????????????? | | ?????????????????????????????????????????????????? | | ???????????????????????????????##????????????????? | | ??????????????????????????????? ????????????????? | | ??????????????????????????????? ????????????????? | | ??????????????????????????????? ????????????????? | | ??????????????????????????????? #????????????????? | | ??????????????????????????????# #????????????????? | | ??????????????????????????????# #????????????????? | | ????????????????????????####??# #????????????????? | | ????????????????????????# #??# #????????????????? | | ????????????????????????# #### #????????????????? | | ???????????????????#####";;;# % #????????????????? | | ???????????????????# *"% %##???????????????? | | ???????????????????# ###" !+% ["#???????????????? | | ???????????#######?# #??#% ####%"#???????????????? | | ???????????# ###+####BB#??#*"#???????????????? | | ???????????# =!!= BB#??#%"##### #?????????? | | ???????????# ==!!= #### + #????????? | | ???????????# !!!! ;"#" "%#### #?????????? | | ???????????# ######## ###??????????????? | | ???????????#######??????# #"""##????????????????? | | ????????????????????????# #####?????????????????? | | ????????????????????????# #?????????????????????? | | ????????????????????????# #?????????????????????? | | ????????????????????????#@ #?????????????????????? | | ????????????????????????# %#?????????????????????? | | ????????????????????????# #?????????????????????? | | ????????????????????????# #?????????????????????? | | ????????????????????????# #?????????????????????? | | ????????????????????????# ?????????????????????? | | ????????????????????????# ?????????????????????? | | ????????????????????????#####????????????????????? | | ?????????????????????????????????????????????????? | | ?????????????????????????????????????????????????? | | ?????????????????????????????????????????????????? | | ?????????????????????????????????????????????????? | | ?????????????????????????????????????????????????? | | ?????????????????????????????????????????????????? | | ?????????????????????????????????????????????????? | | ?????????????????????????????????????????????????? | | ?????????????????????????????????????????????????? | | ?????????????????????????????????????????????????? | | ?????????????????????????????????????????????????? | | ?????????????????????????????????????????????????? | | ?????????????????????????????????????????????????? | | ?????????????????????????????????????????????????? | | ?????????????????????????????????????????????????? | | ?????????????????????????????????????????????????? | | ?????????????????????????????????????????????????? | +----------------------------------------------------+ Best States ------------- Heat Dissipation 50 Energy Generation 14 Energy Capacity 275 Matter Stores 300 Matter Capacity 300 Sight Range 16 Terrain Scan Range 16 Terrain Scan Density 10 Armor Coverage 150 Propulsion Shielding 66 Evasion (%) 40 Targeting Accuracy 8 Recoil Reduction 3 Salvage Targeting 1 Offensive Hacking 10 Defensive Hacking 10 Item Schematics ----------------- Cmb. Airjet | -8/Materials | Scanalyzed Adv. Assault Cannon | -8/Materials | Scanalyzed Robot Schematics ------------------ None Fabricated ------------ Nothing Repaired ---------- Lgt. Cannon | 17% | -10/Materials Imp. Propulsion Shielding | 62% | -8/Materials Adv. Assault Cannon | 15% | -8/Materials Alien Tech Used ----------------- None Achievements -------------- None Challenges ------------ None Game ------ Seed MolecularAblativeMaul Manual? 0 Play Time 00:39:01 Cumulative 467.3 hours Start 2025.08.06 @ 18:48:24 End 2025.08.06 @ 19:25:11 Sessions 1 Manual Loads 0 Difficulty Rogue Special Mode None Game No. 262 Rogue 262 Adventurer 0 Explorer 0 Win Type - Total 5 Types 3/0/1/1/0/0/0/0/0/0 Lore% 86 Gallery% 75 Achievement% 68 Wizard Run 0 Options --------- Layout 2 ASCII 0 Keyboard 1 Movement Vi Keybinds 0 Fullscreen 1 Font 16/Tamsyn Map View 55x47 Zoom Use 0% Tactical HUD 1 Map Filters NONE Filters NONE Steam 0 RUN: ddafa46c-4446-47d1-9b72-0ac5186c5916